Workbook

Sheet A.Overview-performance
A1: vernacular name | B1: variety type | C1: Maroon maturation category | D1: IRRI height category | E1: accession_ID | F1: maturity time [days] | G1: farmers name | H1: Maroon group | I1: Maroon village | J1: latitude farmer field | K1: longitude farmer field | L1: herbarium voucher | M1: accession ID | N1: sowing date | O1: harvest date | P1: average # seeds sown/m2 | Q1: seed density correction factor | R1: average plant height [cm] | S1: average # panicles per plot [0.25m2] | T1: average # tillers per plant | U1: average # tillers per plot [0.25m2] | V1: average # non-productive tillers per plot [0.25m2] | W1: average # productive grains per panicle per plot [0.25m2] | X1: average # non-productive grains/panicle per plot [0.25m2] | Y1: average # productive grains per plot [0.25m2] | Z1: average # productive grains per plot seed density corrected [0.25m2] | AA1: average husked wet grain weight [gr/0.25m2] | AB1: average husked wet grain weight sowing density corrected [gr/0.25m2] | AC1: average naked grain weight [gr/0.25m2] | AD1: average naked grain weight sowing density corrected [gr/0.25m2] | AE1: average naked grain weight 14% water content [gr/0.25m2] | AF1: average naked grain weight 14% water content sowing density corrected [gr/0.25m2] | AG1: average yield [kg/ha] | AH1: average yield sowing density corrected [kg/ha] | AI1: 1000 grains weight in grams at 14% water content [gr] | AJ1: remarks
A2: wataa alisi | B2: Maroon landrace japonica | C2: long-duration | D2: tall | E2: NP379 | F2: 126 | G2: Anne Huur | H2: Saamaka | I2: Pokigron | J2: 4.506 | K2: -55.4056 | L2: yes | M2: NP379 | N2: =DATE(2023,4,17) -> 2023-04-17 | O2: 2023-08-21 | P2: 365 | Q2: =314/P2 -> 0.860 | R2: 177.6 | S2: 14.0 | T2: 1.0 | U2: 14.0 | V2: 1.0 | W2: 246.0 | X2: 4.0 | Y2: 3202 | Z2: =Y2*Q2 -> 2755 | AA2: 78.7 | AB2: =AA2*Q2 -> 67.7 | AC2: 76.3 | AD2: =AC2*Q2 -> 65.6 | AE2: 53.4 | AF2: =AE2*Q2 -> 45.9 | AG2: 2136 | AH2: =AG2*Q2 -> 1838 | AI2: 24.6 | AJ2: Very hairy husks: itches a lot during harvesting. Little bird predation | AP2: =Z1 -> average # productive grains per plot seed density corrected [0.25m2]
A3: weti hédi | B3: Maroon landrace japonica | C3: medium-duration | D3: intermediate | E3: NP380 | F3: 129 | G3: Anne Huur | H3: Saamaka | I3: Pokigron | J3: 4.506 | K3: -55.4056 | L3: yes | M3: NP380 | N3: 2023-04-17 | O3: 2023-08-24 | P3: 365 | Q3: =314/P3 -> 0.860 | R3: 110.0 | S3: 15.0 | T3: 1.0 | U3: 15.0 | V3: 3.0 | W3: 79.0 | X3: 1.6 | Y3: 1573 | Z3: 1353 | AA3: 38.5 | AB3: =AA3*Q3 -> 33.1 | AC3: 35.9 | AD3: =AC3*Q3 -> 30.9 | AE3: 25.1 | AF3: =AE3*Q3 -> 21.6 | AG3: 1005 | AH3: =AG3*Q3 -> 865 | AI3: 24.3 | AJ3: Normal harvest
A4: baaka gogo | B4: Maroon alëkisóóla type japonica | C4: long-duration | D4: tall | E4: NP381 | F4: 126 | G4: Anne Huur | H4: Saamaka | I4: Pokigron | J4: 4.506 | K4: -55.4056 | L4: yes | M4: NP381 | N4: 2023-04-17 | O4: 2023-08-21 | P4: 365 | Q4: 0.860 | R4: 160.8 | S4: 19.0 | T4: 1.0 | U4: 19.0 | V4: 3.0 | W4: 108.0 | X4: 1.5 | Y4: 2060 | Z4: 1772 | AA4: 74.6 | AB4: 64.1 | AC4: 72.1 | AD4: 62.1 | AE4: 50.5 | AF4: 43.4 | AG4: 2020 | AH4: 1738 | AI4: 36.1
A5: mátu alisi | B5: Maroon landrace glaberrima | C5: short-duration | D5: tall | E5: NP382 | F5: 110 | G5: Anne Huur | H5: Saamaka | I5: Pokigron | J5: 4.506 | K5: -55.4056 | L5: yes | M5: NP382 | N5: 2023-04-17 | O5: 2023-08-05 | P5: 365 | Q5: 0.860 | R5: 160.0 | S5: 29.0 | T5: 1.0 | U5: 29.0 | V5: 0.0 | W5: 73.0 | X5: 2.0 | Y5: 3079 | Z5: 2649 | AA5: 80.4 | AB5: 69.2 | AC5: 77.8 | AD5: 66.9 | AE5: 54.5 | AF5: 46.9 | AG5: 2181 | AH5: 1876 | AI5: 26.1 | AJ5: Little bird predation
A6: ahunjön | B6: Maroon landrace japonica | C6: medium-duration | D6: tall | E6: NP383 | F6: 126 | G6: Anne Huur | H6: Saamaka | I6: Pokigron | J6: 4.506 | K6: -55.4056 | L6: yes | M6: NP383 | N6: 2023-04-17 | O6: 2023-08-21 | P6: 365 | Q6: 0.860 | R6: 157.5 | S6: 14.0 | T6: 1.0 | U6: 14.0 | V6: 0.0 | W6: 96.0 | X6: 1.6 | Y6: 1402 | Z6: 1206 | AA6: 41.5 | AB6: 35.7 | AC6: 40.0 | AD6: 34.4 | AE6: 28.0 | AF6: 24.1 | AG6: 1119 | AH6: 963 | AI6: 27.8 | AK6: =AE6*40 -> 1118.8
A7: kwili kwili | B7: Maroon landrace japonica | C7: short-duration | D7: tall | E7: NP384 | F7: 116 | G7: Anne Huur | H7: Saamaka | I7: Pokigron | J7: 4.506 | K7: -55.4056 | L7: yes | M7: NP384 | N7: 2023-04-17 | O7: 2023-08-11 | P7: 365 | Q7: 0.860 | R7: 132.7 | S7: 13.3 | T7: 1.0 | U7: 13.3 | V7: 0.3 | W7: 173.5 | X7: 2.3 | Y7: 2256 | Z7: 1941 | AA7: 68.5 | AB7: 58.9 | AC7: 65.9 | AD7: 56.7 | AE7: 45.9 | AF7: 39.5 | AG7: 1836 | AH7: 1579 | AI7: 28.9
A8: alëkisóóla | B8: Maroon alëkisóóla type japonica | C8: long-duration | D8: tall | E8: NP385 | F8: 129 | G8: Anne Huur | H8: Saamaka | I8: Pokigron | J8: 4.506 | K8: -55.4056 | L8: yes | M8: NP385 | N8: 2023-04-17 | O8: 2023-08-24 | P8: 365 | Q8: 0.860 | R8: 165.2 | S8: 15.0 | T8: 1.0 | U8: 15.0 | V8: 0.0 | W8: 256.0 | X8: 2.2 | Y8: 3389 | Z8: 2915 | AA8: 75.3 | AB8: 64.7 | AC8: 73.0 | AD8: 62.8 | AE8: 51.0 | AF8: 43.8 | AG8: 2039 | AH8: 1754 | AI8: 21.1
A9: jengejenge | B9: Maroon landrace japonica | C9: short-duration | D9: tall | E9: NP387 | F9: 123 | G9: Anne Huur | H9: Saamaka | I9: Pokigron | J9: 4.506 | K9: -55.4056 | L9: yes | M9: NP387 | N9: 2023-04-20 | O9: 2023-08-21 | P9: 365 | Q9: 0.860 | R9: 168.5 | S9: 15.0 | T9: 1.0 | U9: 15.0 | V9: 0.0 | W9: 122.0 | X9: 2.2 | Y9: 1796 | Z9: 1545 | AA9: 46.1 | AB9: 39.7 | AC9: 44.1 | AD9: 37.9 | AE9: 30.4 | AF9: 26.2 | AG9: 1216 | AH9: 1046 | AI9: 24.6
A10: djampö | B10: Maroon landrace japonica | C10: medium-duration | D10: tall | E10: NP388 | F10: 113 | G10: Anne Huur | H10: Saamaka | I10: Pokigron | J10: 4.506 | K10: -55.4056 | L10: yes | M10: NP388 | N10: 2023-04-20 | O10: 2023-08-11 | P10: 365 | Q10: 0.860 | R10: 145.2 | S10: 14.0 | T10: 1.0 | U10: 14.0 | V10: 0.0 | W10: 226.0 | X10: 1.7 | Y10: 3158 | Z10: 2717 | AA10: 75.9 | AB10: 65.3 | AC10: 73.7 | AD10: 63.4 | AE10: 51.2 | AF10: 44.0 | AG10: 2048 | AH10: 1762 | AI10: 24.3
A11: fini sii | B11: Maroon landrace japonica | C11: medium-duration | D11: tall | E11: NP390 | F11: 113 | G11: Anne Huur | H11: Saamaka | I11: Pokigron | J11: 4.506 | K11: -55.4056 | L11: yes | M11: NP390 | N11: 2023-04-20 | O11: 2023-08-11 | P11: 365 | Q11: 0.860 | R11: 136.4 | S11: 14.0 | T11: 1.0 | U11: 14.0 | V11: 0.0 | W11: 161.0 | X11: 1.6 | Y11: 2296 | Z11: 1975 | AA11: 54.3 | AB11: 46.7 | AC11: 51.6 | AD11: 44.4 | AE11: 35.9 | AF11: 30.9 | AG11: 1437 | AH11: 1236 | AI11: 23.5
A12: alëkisóóla, baaw ana | B12: Maroon alëkisóóla type japonica | C12: long-duration | D12: tall | E12: NP391 | F12: 123 | G12: Anne Huur | H12: Saamaka | I12: Pokigron | J12: 4.506 | K12: -55.4056 | L12: yes | M12: NP391 | N12: 2023-04-20 | O12: 2023-08-21 | P12: 365 | Q12: 0.860 | R12: 167.8 | S12: 14.0 | T12: 1.0 | U12: 14.0 | V12: 0.0 | W12: 139.0 | X12: 1.9 | Y12: 1952 | Z12: 1679 | AA12: 50.1 | AB12: 43.1 | AC12: 47.4 | AD12: 40.8 | AE12: 33.2 | AF12: 28.5 | AG12: 1326 | AH12: 1141 | AI12: 26.2
A13: alëkisóóla, bë | B13: Maroon alëkisóóla type japonica | C13: long-duration | D13: tall | E13: NP392 | F13: 113 | G13: Anne Huur | H13: Saamaka | I13: Pokigron | J13: 4.506 | K13: -55.4056 | L13: yes | M13: NP392 | N13: 2023-04-20 | O13: 2023-08-11 | P13: 365 | Q13: 0.860 | R13: 168.1 | S13: 16.0 | T13: 1.0 | U13: 16.0 | V13: 0.0 | W13: 168.0 | X13: 1.6 | Y13: 2685 | Z13: 2310 | AA13: 80.4 | AB13: 69.2 | AC13: 78.4 | AD13: 67.4 | AE13: 54.8 | AF13: 47.1 | AG13: 2192 | AH13: 1886 | AI13: 29.4
A14: alísi seéi | B14: Maroon landrace japonica | C14: short-duration | D14: tall | E14: NP395 | F14: 123 | G14: Anne Huur | H14: Saamaka | I14: Pokigron | J14: 4.506 | K14: -55.4056 | L14: yes | M14: NP395 | N14: 2023-04-20 | O14: 2023-08-21 | P14: 365 | Q14: 0.860 | R14: 167.5 | S14: 15.0 | T14: 1.0 | U14: 15.0 | V14: 0.0 | W14: 95.0 | X14: 2.4 | Y14: 1455 | Z14: 1252 | AA14: 31.0 | AB14: 26.7 | AC14: 28.3 | AD14: 24.3 | AE14: 19.7 | AF14: 16.9 | AG14: 786 | AH14: 676 | AI14: 21.4
A15: sika sii, bë | B15: Maroon landrace japonica | C15: short-duration | D15: tall | E15: NP396 | F15: 113 | G15: Anne Huur | H15: Saamaka | I15: Pokigron | J15: 4.506 | K15: -55.4056 | L15: yes | M15: NP396 | N15: 2023-04-20 | O15: 2023-08-11 | P15: 365 | Q15: 0.860 | R15: 134.0 | S15: 13.0 | T15: 1.0 | U15: 13.0 | V15: 0.0 | W15: 174.0 | X15: 2.9 | Y15: 2151 | Z15: 1850 | AA15: 31.7 | AB15: 27.2 | AC15: 28.3 | AD15: 24.3 | AE15: 20.8 | AF15: 17.9 | AG15: 832 | AH15: 716 | AI15: 14.8
A16: taanga lobi | B16: Maroon landrace japonica | C16: long-duration | D16: tall | E16: NP397 | F16: 123 | G16: Anne Huur | H16: Saamaka | I16: Pokigron | J16: 4.506 | K16: -55.4056 | L16: yes | M16: NP397 | N16: 2023-04-20 | O16: 2023-08-21 | P16: 365 | Q16: 0.860 | R16: 139.9 | S16: 16.0 | T16: 1.0 | U16: 16.0 | V16: 0.0 | W16: 120.0 | X16: 1.7 | Y16: 1912 | Z16: 1645 | AA16: 61.9 | AB16: 53.3 | AC16: 58.8 | AD16: 50.6 | AE16: 41.5 | AF16: 35.7 | AG16: 1644 | AH16: 1414 | AI16: 32.5
A17: sika sii, weti | B17: Maroon landrace japonica | C17: short-duration | D17: tall | E17: NP398 | F17: 113 | G17: Anne Huur | H17: Saamaka | I17: Pokigron | J17: 4.506 | K17: -55.4056 | L17: yes | M17: NP398 | N17: 2023-04-20 | O17: 2023-08-11 | P17: 365 | Q17: 0.860 | R17: 137.0 | S17: 14.0 | T17: 1.0 | U17: 14.0 | V17: 0.0 | W17: 138.0 | X17: 1.0 | Y17: 1892 | Z17: 1628 | AA17: 39.5 | AB17: 34.0 | AC17: 36.3 | AD17: 31.2 | AE17: 25.4 | AF17: 21.8 | AG17: 1014 | AH17: 872 | AI17: 20.9
A18: alísi seéi, bë wojo | B18: Maroon landrace japonica | C18: short-duration | D18: tall | E18: NP399 | F18: 117 | G18: Julia Pomba | H18: Saamaka | I18: Diafutu | J18: 5.1095 | K18: -55.0492 | L18: no | M18: NP399 | N18: 2023-04-19 | O18: 2023-08-14 | P18: 314 | Q18: 1.000 | R18: 176.9 | S18: 14.0 | T18: 1.0 | U18: 14.0 | V18: 0.0 | W18: 120.0 | X18: 2.0 | Y18: 1683 | Z18: 1683 | AA18: 38.7 | AB18: 38.7 | AC18: 37.3 | AD18: 37.3 | AE18: 26.0 | AF18: 26.0 | AG18: 1041 | AH18: 1041 | AI18: 23.1
A19: weti alisi | B19: Maroon landrace japonica | C19: short-duration | D19: tall | E19: NP400 | F19: 117 | G19: Julia Pomba | H19: Saamaka | I19: Diafutu | J19: 5.1095 | K19: -55.0492 | L19: yes | M19: NP400 | N19: 2023-04-19 | O19: 2023-08-14 | P19: 314 | Q19: 1.000 | R19: 134.4 | S19: 14.0 | T19: 1.0 | U19: 14.0 | V19: 0.3 | W19: 143.0 | X19: 3.2 | Y19: 2049 | Z19: 2049 | AA19: 58.0 | AB19: 58.0 | AC19: 56.5 | AD19: 56.5 | AE19: 39.5 | AF19: 39.5 | AG19: 1580 | AH19: 1580 | AI19: 28.3
A20: bë kuli | B20: Maroon landrace japonica | C20: medium-duration | D20: tall | E20: NP401 | F20: 117 | G20: Julia Pomba | H20: Saamaka | I20: Diafutu | J20: 5.1095 | K20: -55.0492 | L20: yes | M20: NP401 | N20: 2023-04-19 | O20: 2023-08-14 | P20: 314 | Q20: 1.000 | R20: 168.7 | S20: 14.0 | T20: 1.0 | U20: 14.0 | V20: 0.0 | W20: 157.0 | X20: 1.6 | Y20: 2257 | Z20: 2257 | AA20: 68.6 | AB20: 68.6 | AC20: 66.6 | AD20: 66.6 | AE20: 46.6 | AF20: 46.6 | AG20: 1864 | AH20: 1864 | AI20: 26.9
A21: weti kuli | B21: Maroon landrace japonica | C21: medium-duration | D21: tall | E21: NP402 | F21: 117 | G21: Julia Pomba | H21: Saamaka | I21: Diafutu | J21: 5.1095 | K21: -55.0492 | L21: yes | M21: NP402 | N21: 2023-04-19 | O21: 2023-08-14 | P21: 314 | Q21: 1.000 | R21: 157.9 | S21: 14.3 | T21: 1.0 | U21: 14.3 | V21: 0.0 | W21: 211.0 | X21: 1.6 | Y21: 3023 | Z21: 3023 | AA21: 70.4 | AB21: 70.4 | AC21: 68.4 | AD21: 68.4 | AE21: 47.9 | AF21: 47.9 | AG21: 1914 | AH21: 1914 | AI21: 23.3
A22: A-125 | B22: Nickerie commercial japonica | C22: short-duration | D22: semidwarf | E22: NP407A | F22: 98 | G22: Julia Pomba | H22: Saamaka | I22: Diafutu | J22: 5.1095 | K22: -55.0492 | L22: yes | M22: NP407A | N22: 2023-04-25 | O22: 2023-08-01 | P22: 314 | Q22: 1.000 | R22: 43.4 | S22: 20.0 | T22: 1.0 | U22: 20.0 | V22: 0.0 | W22: 42.5 | X22: 0.0 | Y22: 850 | Z22: 850 | AA22: 23.8 | AB22: 23.8 | AC22: 20.4 | AD22: 20.4 | AE22: 14.3 | AF22: 14.3 | AG22: 571 | AH22: 571 | AI22: 28.1 | AJ22: Heavy bird predation
A23: A-130 | B23: Nickerie commercial japonica | C23: short-duration | D23: semidwarf | E23: NP408A | F23: 98 | G23: Julia Pomba | H23: Saamaka | I23: Diafutu | J23: 5.7665 | K23: -54.486 | L23: yes | M23: NP408A | N23: 2023-04-25 | O23: 2023-08-01 | P23: 314 | Q23: 1.000 | R23: 58.2 | S23: 20.0 | T23: 1.0 | U23: 20.0 | V23: 0.0 | W23: 84.2 | X23: 1.8 | Y23: 1680 | Z23: 1680 | AA23: 35.1 | AB23: 35.1 | AC23: 33.0 | AD23: 33.0 | AE23: 23.0 | AF23: 23.0 | AG23: 921 | AH23: 921 | AI23: 31.4 | AJ23: Heavy bird predation
A24: A-125 | B24: Nickerie commercial japonica | C24: short-duration | D24: semidwarf | E24: NP407B | F24: 100 | G24: Marjorie Kanawi | H24: Okanisi | I24: Wanhatti | J24: 5.1095 | K24: -55.0492 | L24: yes | M24: NP407B | N24: 2023-04-21 | O24: 2023-07-30 | P24: 448 | Q24: 0.701 | R24: 55.0 | S24: 13.0 | T24: 1.0 | U24: 13.0 | V24: 1.0 | W24: 62.5 | X24: 0.5 | Y24: 813 | Z24: 570 | AA24: 26.7 | AB24: 18.7 | AC24: 24.4 | AD24: 17.1 | AE24: 17.0 | AF24: 11.9 | AG24: 679 | AH24: 476 | AI24: 30.7
A25: A-130 | B25: Nickerie commercial japonica | C25: short-duration | D25: semidwarf | E25: NP408B | F25: 100 | G25: Marjorie Kanawi | H25: Okanisi | I25: Wanhatti | J25: 5.7665 | K25: -54.486 | L25: yes | M25: NP408B | N25: 2023-04-21 | O25: 2023-07-30 | P25: 448 | Q25: 0.701 | R25: 60.0 | S25: 14.0 | T25: 1.0 | U25: 14.0 | V25: 0.0 | W25: 130.0 | X25: 4.8 | Y25: 1826 | Z25: 1280 | AA25: 56.1 | AB25: 39.3 | AC25: 53.1 | AD25: 37.2 | AE25: 37.1 | AF25: 26.0 | AG25: 1485 | AH25: 1041 | AI25: 31.0
A27: akwandjaa | B27: Maroon landrace japonica | C27: short-duration | D27: n/a | E27: NP386 | F27: 0 | G27: Anne Huur | H27: Saamaka | I27: Pokigron | J27: 4.506 | K27: -55.4056 | L27: no | M27: NP386 | N27: 2023-04-20 | O27: did not reach maturity | P27: 365 | Q27: =314/P27 -> 0.860 | R27: 12.0 | S27: 0.0 | T27: 0.0 | U27: 0.0 | V27: 0.0 | W27: 0.0 | X27: 0.0 | Y27: 0.0 | Z27: 0.0 | AA27: 0 | AB27: 0 | AC27: 0 | AD27: 0 | AE27: 0 | AF27: 0 | AG27: 0 | AH27: 0 | AI27: 0 | AJ27: Sown in area without ash from burned trees and branches
A28: alëkisóóla, weti | B28: Maroon alëkisóóla type japonica | C28: long-duration | D28: n/a | E28: NP389 | F28: 0 | G28: Anne Huur | H28: Saamaka | I28: Pokigron | J28: 4.506 | K28: -55.4056 | L28: no | M28: NP389 | N28: 2023-04-20 | O28: did not reach maturity | P28: 365 | Q28: =314/P28 -> 0.860 | R28: 15.0 | S28: 0.0 | T28: 0.0 | U28: 0.0 | V28: 0.0 | W28: 0.0 | X28: 0.0 | Y28: 0.0 | Z28: 0.0 | AA28: 0 | AB28: 0 | AC28: 0 | AD28: 0 | AE28: 0 | AF28: 0 | AG28: 0 | AH28: 0 | AI28: 0 | AJ28: Sown in area without ash from burned trees and branches
A29: awéi máun | B29: Maroon landrace japonica | C29: short-duration | D29: n/a | E29: NP393 | F29: 0 | G29: Anne Huur | H29: Saamaka | I29: Pokigron | J29: 4.506 | K29: -55.4056 | L29: no | M29: NP393 | N29: 2023-04-20 | O29: did not reach maturity | P29: 365 | Q29: 0.860 | R29: 13.0 | S29: 0.0 | T29: 0.0 | U29: 0.0 | V29: 0.0 | W29: 0.0 | X29: 0.0 | Y29: 0.0 | Z29: 0.0 | AA29: 0 | AB29: 0 | AC29: 0 | AD29: 0 | AE29: 0 | AF29: 0 | AG29: 0 | AH29: 0 | AI29: 0 | AJ29: Sown in area without ash from burned trees and branches
A30: sika sii ku puuma | B30: Maroon landrace japonica | C30: medium-duration | D30: n/a | E30: NP394 | F30: 0 | G30: Anne Huur | H30: Saamaka | I30: Pokigron | J30: 4.506 | K30: -55.4056 | L30: no | M30: NP394 | N30: 2023-04-20 | O30: did not reach maturity | P30: 365 | Q30: 0.860 | R30: 10.0 | S30: 0.0 | T30: 0.0 | U30: 0.0 | V30: 0.0 | W30: 0.0 | X30: 0.0 | Y30: 0.0 | Z30: 0.0 | AA30: 0 | AB30: 0 | AC30: 0 | AD30: 0 | AE30: 0 | AF30: 0 | AG30: 0 | AH30: 0 | AI30: 0 | AJ30: Sown in area without ash from burned trees and branches
A31: ahunjön | B31: Maroon landrace japonica | C31: medium-duration | D31: n/a | E31: NP403 | F31: 0 | G31: Julia Pomba | H31: Saamaka | I31: Diafutu | J31: 5.1095 | K31: -55.0492 | L31: no | M31: NP403 | N31: 2023-04-19 | O31: no germination | P31: 314 | Q31: 1.000 | R31: 0.0 | S31: 0.0 | T31: 0.0 | U31: 0.0 | V31: 0.0 | W31: 0.0 | X31: 0.0 | Y31: 0.0 | Z31: 0.0 | AA31: 0 | AB31: 0 | AC31: 0 | AD31: 0 | AE31: 0 | AF31: 0 | AG31: 0 | AH31: 0 | AI31: 0
A32: katam | B32: Maroon landrace japonica | C32: long-duration | D32: n/a | E32: NP404 | F32: 0 | G32: Marjorie Kanawi | H32: Okanisi | I32: Wanhatti | J32: 5.7665 | K32: -54.486 | L32: no | M32: NP404 | N32: 2023-04-21 | O32: no germination | P32: 448 | Q32: 0.701 | R32: 0.0 | S32: 0.0 | T32: 0.0 | U32: 0.0 | V32: 0.0 | W32: 0.0 | X32: 0.0 | Y32: 0.0 | Z32: 0.0 | AA32: 0 | AB32: 0 | AC32: 0 | AD32: 0 | AE32: 0 | AF32: 0 | AG32: 0 | AH32: 0 | AI32: 0
A33: masaa alisi | B33: Maroon landrace japonica | C33: long-duration | D33: tall | E33: NP405 | F33: 183 | G33: Marjorie Kanawi | H33: Okanisi | I33: Wanhatti | J33: 5.7665 | K33: -54.486 | L33: no | M33: NP405 | N33: 2023-04-21 | O33: 2023-10-21 | P33: 448 | Q33: 0.701 | R33: NA | S33: NA | T33: NA | U33: NA | V33: NA | W33: NA | X33: NA | Y33: NA | Z33: NA | AA33: NA | AB33: NA | AC33: NA | AD33: NA | AE33: NA | AF33: NA | AG33: NA | AH33: NA | AI33: NA | AJ33: Ripening took very long: outside fieldwork period
A34: bambusi | B34: Maroon landrace japonica | C34: long-duration | D34: n/a | E34: NP406 | F34: 0 | G34: Marjorie Kanawi | H34: Okanisi | I34: Wanhatti | J34: 5.7665 | K34: -54.486 | L34: no | M34: NP406 | N34: 2023-04-21 | O34: no germination | P34: 448 | Q34: 0.701 | R34: 0.0 | S34: 0.0 | T34: 0.0 | U34: 0.0 | V34: 0.0 | W34: 0.0 | X34: 0.0 | Y34: 0.0 | Z34: 0.0 | AA34: 0 | AB34: 0 | AC34: 0 | AD34: 0 | AE34: 0 | AF34: 0 | AG34: 0 | AH34: 0 | AI34: 0

Sheet B.Data_normality_checks
A2: Shapiro-Wilk Test | B2: Note: a p-value greater than 0.05 indicates the data is normally distributed
B4: W | C4: p-value | D4: conclusion
A5: real time to maturity (days) | B5: 0.90742 | C5: 0.03102 | D5: not normally distributed
A6: avg. plant height (cm) | B6: 0.79282 | C6: 0.0002253 | D6: not normally distributed
A7: avg. seed density (m2) | B7: 0.71348 | C7: 1.53E-05 | D7: not normally distributed
A8: avg. number productive grains per plot | B8: 0.95167 | C8: 0.2943 | D8: normally distributed
A9: avg. weight dehusked grains with 14% water content (gram/plot) | B9: 0.92979 | C9: 0.09646 | D9: normally distributed
A10: corrected avg. total yield (kg/ha) | B10: 0.90966 | C10: 0.03468 | D10: not normally distributed
A11: 1000 grains weight [14% water content] (gr) | B11: 0.98276 | C11: 0.9408 | D11: normally distributed

Sheet C.Maturation-class_stats
B1: Testing for significant differences between Maroon landrace maturation classes
C3: Kruskal Test (chi-squared, p-value)
C5: All Maroon classes | E5: Statistical implication
B6: Performance variable | C6: chi-squared | D6: p-value
B7: real time to maturity (days) | C7: 4.069 | D7: 0.131 | E7: no significant difference
B8: avg. plant height (cm) | C8: 2.819 | D8: 0.244 | E8: no significant difference
B9: avg. number productive grains per plot | C9: 2.395 | D9: 0.302 | E9: no significant difference
B10: avg. weight dehusked grains with 14% water content (gr/plot) | C10: 5.038 | D10: 0.081 | E10: no significant difference
B11: 1000 grains weight [14% water content] (gr) | C11: 3.054 | D11: 0.217 | E11: no significant difference
B12: avg. total yield (kg/ha) | C12: 5.038 | D12: 0.081 | E12: no significant difference
B13: corrected avg. total yield (kg/ha) | C13: 3.437 | D13: 0.179 | E13: no significant difference
C16: Dunn's Test with Bonferroni correction (Z, p-value)
C18: Maroon [short] - Maroon [medium] | E18: Maroon [short] - Maroon [long] | G18: Maroon [medium] - Maroon [long]
B19: Performance variable | C19: Z | D19: p-value | E19: Z | F19: p-value | G19: Z | H19: p-value
B20: real time to maturity (days) | C20: NR | D20: NR | E20: NR | F20: NR | G20: NR | H20: NR
B21: avg. plant height (cm) | C21: NR | D21: NR | E21: NR | F21: NR | G21: NR | H21: NR
B22: avg. number productive grains per plot | C22: NR | D22: NR | E22: NR | F22: NR | G22: NR | H22: NR
B23: avg. weight dehusked grains with 14% water content (gr/plot) | C23: 0.887 | D23: 1.000 | E23: 2.243 | F23: 0.075 | G23: 1.269 | H23: 0.614
B24: 1000 grains weight [14% water content] (gr) | C24: NR | D24: NR | E24: NR | F24: NR | G24: NR | H24: NR
B25: avg. total yield (kg/ha) | C25: 0.887 | D25: 1.000 | E25: 2.243 | F25: 0.075 | G25: 1.269 | H25: 0.614
B26: corrected avg. total yield (kg/ha) | C26: NR | D26: NR | E26: NR | F26: NR | G26: NR | H26: NR

Sheet D.Maroon-vs-commercial_stats
B1: Testing for significant differences between the Maroon landraces (as a combined group) and the commercial cultivars
C4: Mann-Whitney-U (W, p-value)
C6: All Maroon landraces vs All commercial cultivars | E6: Statistical implication
C7: W | D7: p-value
B8: real time to maturity (days) | C8: 0 | D8: 1.992E-03 | E8: significant difference
B9: avg. plant height (cm) | C9: 0 | D9: 2.216E-03 | E9: significant difference
B10: avg. number productive grains per plot | C10: 8 | D10: 0.015 | E10: moderate significant difference
B11: avg. weight dehusked grains with 14% water content (gr/plot) | C11: 11 | D11: 0.027 | E11: moderate significant difference
B12: 1000 grains weight [14% water content] (gr) | C12: 69 | D12: 0.027 | E12: moderate significant difference
B13: avg. total yield (kg/ha) | C13: 11 | D13: 0.027 | E13: moderate significant difference
B14: corrected avg. total yield (kg/ha) | C14: 9.5 | D14: 0.020 | E14: moderate significant difference
